fUSD/lending_fUSD_20240204
["ID","MTS","AMOUNT","RATE_DAILY","PERIOD"]
[313256903,1707040245982,-500.0,0.00022999,2]
[313256904,1707040245991,-500.0,0.00022999,2]
[313256905,1707040246001,-432.46379291,0.00022999,2]
[313256906,1707040246010,-500.0,0.00022999,2]
[313256907,1707040246019,-500.0,0.00022999,2]
[313256909,1707040246029,-187662.26859386,0.00023,3]
[313256912,1707040246047,-461853.19389364,0.00023,2]
[313256915,1707040246069,-15565.60955824,0.00023,2]
[313256918,1707040246084,-11654.99999974,0.00023,2]
[313256920,1707040246096,-425.86724695,0.00023,2]
[313256922,1707040246107,-4319.85845482,0.00023,2]
[313256924,1707040246120,-139867.66042366,0.00023,2]
[313256926,1707040246142,-10808.49976856,0.00023,2]
[313256927,1707040246154,-768.06384375,0.00023,2]
[313256928,1707040246165,-21486.49999999,0.00023,2]
[313257176,1707040253282,238.43478419,0.00022034,2]
[313257177,1707040264582,918.77524839,0.000251,120]
[313257178,1707040296508,1828.97931683,0.00022308,2]
[313257179,1707040298918,624.61821592,0.00022078,2]
[313257180,1707040302043,417.3967963,0.00020468,2]
[313257181,1707040304339,3133.39834862,0.00021848,2]
[313257182,1707040313756,305.75644822,0.00021848,2]
[313257183,1707040314049,3197.13386433,0.00022078,2]
[313257184,1707040316714,182.66,0.00022396,2]
[313257185,1707040381956,180.54,0.00022223,2]
[313257186,1707040406003,5122.12266169,0.00022201,2]
[313257187,1707040406028,18777.87733831,0.00022201,2]
[313257188,1707040429526,618.19,0.0002231,2]
[313257189,1707040441269,524.44,0.00022093,2]
[313257190,1707040489583,150.0,0.00022086,2]
[313257191,1707040489602,50.0,0.00022086,2]
[313257192,1707040491568,100.0,0.00022108,2]
[313257193,1707040491589,150.0,0.00022108,2]
[313257194,1707040491610,150.0,0.00022108,2]
[313257195,1707040491632,49.21,0.00022108,2]
[313257196,1707040492656,150.0,0.00022,3]
[313257197,1707040492677,150.0,0.00022,3]
[313257198,1707040492697,150.0,0.00022,3]
[313257199,1707040492719,100.0,0.00022,3]
[313257200,1707040522779,221.55,0.00020165,2]
[313257201,1707040523128,221.55,0.00022429,2]
[313257202,1707040549476,150.0,0.00021989,2]
[313257203,1707040549497,150.0,0.00021989,2]
[313257204,1707040549519,150.0,0.00021989,2]
[313257205,1707040549538,150.0,0.00021989,2]
[313257206,1707040549562,150.0,0.00021989,2]
[313257207,1707040549585,150.0,0.00021989,2]
[313257208,1707040549606,150.0,0.00021989,2]
[313257209,1707040549630,150.0,0.00021989,2]
[313257210,1707040549655,150.0,0.00021989,2]
[313257211,1707040549678,150.0,0.00021989,2]
[313257212,1707040549700,150.0,0.00021989,2]
[313257213,1707040549721,163.64,0.00021989,2]
[313257214,1707040549744,2474.18407604,0.00021989,2]
[313257215,1707040553474,156.67379422,0.000198,2]
[313257216,1707040556679,284.99040577,0.00022,2]
[313257217,1707040559314,865.39916615,0.00022,4]
[313257218,1707040562908,199.03,0.00022022,10]
[313257219,1707040567528,353.08,0.00022,2]
[313257220,1707040567819,159.7,0.00021997,2]
[313257221,1707040590517,166.94,0.00021935,2]
[313257222,1707040593637,666.95,0.00021915,2]
[313257223,1707040594545,317.29,0.00022079,2]
[313257224,1707040594607,317.29,0.0002214,2]
[313257225,1707040594819,317.29,0.000222,2]
[313257226,1707040595023,317.29,0.00022261,2]
[313257227,1707040595242,317.29,0.00022321,2]
[313257228,1707040595451,317.29,0.00022382,2]
[313257229,1707040595672,317.29,0.00022443,2]
[313257230,1707040642564,1983.481476,0.00022388,2]
[313257231,1707040644829,-172.02314401,0.000225,2]
[313257232,1707040646492,-163.15598952,0.000225,2]
[313257233,1707040658626,250.0,0.00021918,2]
[313257234,1707040659786,500.0,0.00021867,2]
[313257235,1707040667439,488.92621759,0.00022499,2]
[313257236,1707040670265,-65.98863707,0.000225,2]
[313257237,1707040670287,-84.01136293,0.000225,2]
[313257238,1707040672510,525.60341739,0.00022499,2]
[313257239,1707040672770,-150.0,0.000225,2]
[313257240,1707040675196,155.0,0.00022499,2]
[313257241,1707040678728,631.10009728,0.00022499,2]
[313257242,1707040682334,155.0,0.00022499,2]
[313257243,1707040683021,150.0,0.00021878,2]
[313257244,1707040692246,2350.75558365,0.00022499,2]
[313257245,1707040693468,15237.95,0.00021878,2]
[313257246,1707040705779,200.0,0.00021883,2]
[313257247,1707040739982,488.92621759,0.00022499,2]
[313257248,1707040743668,229.14462659,0.00022499,2]
[313257249,1707040752582,296.02,0.00021883,2]
[313257250,1707040758245,4664.81,0.00021887,2]
[313257251,1707040758759,1224.74365908,0.00022499,2]
[313257252,1707040774315,198.06,0.00021883,2]
[313257253,1707040793634,200.0,0.00021883,2]
[313257254,1707040803747,157.66,0.00022431,2]
[313257255,1707040805558,180.54,0.00021883,2]
[313257256,1707040811093,1138.66,0.00022046,2]
[313257257,1707040830640,1351.57,0.00021871,2]
[313257258,1707040838530,1097.8,0.00021871,2]
[313257259,1707040845209,1466.51,0.00021871,2]
[313257260,1707040867004,250.0,0.00021878,2]
[313257261,1707040867047,488.92621759,0.00022499,2]
[313257262,1707040879776,1224.74365908,0.00022499,2]
[313257263,1707040897993,1624.53,0.00021878,2]
[313257264,1707040906787,200.0,0.00021878,2]
[313257265,1707040933210,173.89,0.00017497,2]
[313257266,1707040959875,-223.26580512,0.000225,2]
[313257267,1707040965614,303.92,0.00021871,2]
[313257268,1707040979196,150.45,0.00021918,2]
[313257269,1707040994010,488.92621759,0.00022499,2]
[313257270,1707040998811,1224.74365908,0.00022499,2]
[313257271,1707041012294,321.75369153,0.00022499,2]
[313257272,1707041019216,2000.0,0.00021889,2]
[313257273,1707041045362,331.83,0.00019953,2]
[313257274,1707041045556,331.83,0.00022217,2]
[313257275,1707041066826,208.40693676,0.0002244,2]
[313257276,1707041075396,640.63,0.00021874,2]
[313257277,1707041080034,1804.99,0.00021874,2]
[313257278,1707041098144,293.74,0.00022046,2]
[313257279,1707041098527,293.74,0.00022107,2]
[313257280,1707041098925,293.74,0.00022167,2]
[313257281,1707041099275,293.74,0.00022228,2]
[313257282,1707041099551,293.74,0.00022288,2]
[313257283,1707041099786,293.74,0.00022349,2]
[313257284,1707041100009,293.74,0.00022409,2]
[313257285,1707041100242,293.74,0.0002247,2]
[313257286,1707041105883,2705.0,0.00021878,2]
[313257287,1707041138706,3561.9027,0.00022441,2]
[313257288,1707041152594,161.74184478,0.0002244,2]
[313257289,1707041175638,161.62,0.00021865,2]
[313257290,1707041179956,179.37,0.00021865,2]
[313257291,1707041184843,500.0,0.00022,2]
[313257292,1707041191780,250.0,0.00021918,2]
[313257293,1707041193835,209.0,0.00022132,2]
[313257294,1707041195498,150.0,0.00021865,2]
[313257295,1707041264060,1031.77,0.00021876,2]
[313257296,1707041277307,308.96,0.00022058,2]
[313257297,1707041299312,250.0,0.00022,2]
[313257298,1707041300614,250.0,0.00022274,2]
[313257299,1707041356090,250.0,0.00021876,2]
[313257300,1707041367335,150.0,0.00022,2]
[313257304,1707041389026,200.0,0.00021872,2]
[313257315,1707041431818,-869.03554055,0.00022524,2]
[313257316,1707041431833,-3845.8907587,0.00022524,2]
[313257317,1707041431844,-1224.74365908,0.00022525,2]
[313257318,1707041431856,-293.74,0.0002253,2]
[313257319,1707041431866,-4312.20408656,0.00022539,2]
[313257320,1707041431877,-150.0,0.00022539,2]
[313257321,1707041432062,-150.0,0.00022539,2]
[313257322,1707041432073,-157.66,0.00022539,2]
[313257323,1707041432083,-487.71830665,0.0002254,2]
[313257324,1707041432093,-250.67480771,0.0002254,2]
[313257326,1707041432102,-32244.52460016,0.00022542,2]
[313257327,1707041432113,-3867.77479418,0.00022542,2]
[313257328,1707041432124,-4022.66244914,0.00022542,2]
[313257329,1707041432139,-19719.17901459,0.00022542,2]
[313257330,1707041432166,-6320.08717253,0.00022542,2]
[313257331,1707041432177,-477.94521477,0.00022542,2]
[313257332,1707041432189,-2149.95,0.00022542,2]
[313257352,1707041438097,-1184.90488546,0.00022542,2]
[313257353,1707041438113,-4926.42992235,0.00022542,2]
[313257356,1707041438301,-350.20110314,0.00022542,2]
[313257358,1707041438312,-876.30395543,0.00022542,2]
[313257361,1707041438327,-502.61833434,0.00022542,2]
[313257369,1707041440406,-3291.39065368,0.00022542,2]
[313257370,1707041440421,-3723.81727995,0.00022542,2]
[313257371,1707041440434,-468.67992952,0.00022542,2]
[313257372,1707041440446,-489.84713216,0.00022542,2]
[313257373,1707041440467,-2102.7673685,0.00022542,2]
[313257374,1707041440478,-445.77293818,0.00022542,2]
[313257375,1707041440522,-29539.14325192,0.00022542,2]
[313257376,1707041440531,-150.0,0.00022548,2]
[313257377,1707041440541,-293.74,0.00022591,2]
[313257378,1707041440550,-293.74,0.00022651,2]
[313257379,1707041440560,-161.74184478,0.0002267,2]
[313257380,1707041440570,-1824.0,0.000227,2]
[313257381,1707041440579,-293.74,0.00022712,2]
[313257382,1707041440590,-1040.43468736,0.00022763,2]
[313257383,1707041440599,-158.30695886,0.00022763,2]
[313257384,1707041440608,-1179.44455971,0.00022763,2]
[313257385,1707041440617,-214.80173683,0.00022763,2]
[313257386,1707041440626,-216.27832351,0.00022763,2]
[313257387,1707041440635,-155.0,0.00022763,2]
[313257388,1707041440644,-1975.82438987,0.00022763,2]
[313257389,1707041440654,-622.21232072,0.00022763,2]
[313257390,1707041440664,-228.54367795,0.00022763,2]
[313257391,1707041440673,-3161.74813529,0.00022764,5]
[313257392,1707041440684,-1531.14617822,0.00022764,5]
[313257393,1707041440695,-422.39692347,0.00022764,5]
[313257394,1707041440704,-58667.21843761,0.00022765,2]
[313257395,1707041440713,-293.74,0.00022772,2]
[313257396,1707041440722,-716.43,0.00022796,2]
[313257397,1707041440731,-688.766,0.00022798,2]
[313257398,1707041440740,-5106.6649,0.00022798,2]
[313257399,1707041440751,-200.0,0.00022816,2]
[313257400,1707041440765,-200.0,0.00022816,2]
[313257401,1707041440774,-293.74,0.00022832,2]
[313257402,1707041440785,-306.08722535,0.00022882,2]
[313257403,1707041440795,-293.74,0.00022893,2]
[313257404,1707041440804,-718.63,0.00022897,2]
[313257405,1707041440813,-724.56,0.00022897,2]
[313257406,1707041440822,-13009.10978729,0.00022897,2]
[313257407,1707041441214,-1027.09718595,0.00022897,2]
[313257408,1707041441225,-372.46008747,0.00022897,2]
[313257409,1707041441237,-420.88,0.00022897,2]
[313257410,1707041441268,-396.8142058,0.00022897,2]
[313257411,1707041441279,-1404.82155403,0.00022897,2]
[313257435,1707041442925,-185.31242484,0.00022897,2]
[313257436,1707041442935,-1004.40670752,0.00022898,2]
[313257437,1707041442944,-843.42527395,0.00022898,2]
[313257438,1707041443087,-2302.19972605,0.00022898,2]
[313257439,1707041443098,-265.5329,0.00022898,2]
[313257440,1707041443108,-1090.70462188,0.00022899,2]
[313257441,1707041443118,-2192.95339527,0.000229,2]
[313257442,1707041443140,-1485.40882264,0.000229,2]
[313257443,1707041443149,-153.55670088,0.000229,2]
[313257444,1707041443157,-174.02841244,0.000229,2]
[313257445,1707041443167,-161.74184478,0.000229,2]
[313257446,1707041443177,-1039.60985353,0.000229,2]
[313257447,1707041445836,-3960.39014647,0.000229,2]
[313257448,1707041445846,-165.27850825,0.000229,2]
[313257449,1707041445856,-293.74,0.00022953,2]
[313257450,1707041445865,-217.13404145,0.00022975,2]
[313257451,1707041445875,-296.02,0.00022977,2]
[313257452,1707041445884,-187.06879032,0.00022997,2]
[313257453,1707041445893,-305.10950302,0.00022997,2]
[313257454,1707041445903,-192.26231884,0.00022997,2]
[313257455,1707041445913,-268.56411695,0.00022998,2]
[313257456,1707041445925,-155.60261424,0.00022998,2]
[313257457,1707041445936,-637.00641291,0.00022998,2]
[313257458,1707041445945,-1314.38519298,0.00022998,2]
[313257459,1707041445954,-644.14940004,0.00022998,2]
[313257460,1707041445964,-5442.70539136,0.00022998,2]
[313257461,1707041445974,-159.30807019,0.00022998,2]
[313257462,1707041445984,-220.30306813,0.00022998,2]
[313257463,1707041445993,-218.76982963,0.00022998,2]
[313257464,1707041446002,-155.0,0.00022998,2]
[313257465,1707041446011,-171.6384234,0.00022998,2]
[313257466,1707041446021,-366.02376641,0.00022998,2]
[313257467,1707041446031,-217.42528837,0.00022998,2]
[313257468,1707041446041,-1375.07063722,0.00022998,2]
[313257469,1707041446050,-562.17485463,0.00022998,2]
[313257470,1707041446061,-247.71451766,0.00022998,2]
[313257471,1707041446070,-771.71029735,0.00022998,2]
[313257472,1707041446080,-158.49370044,0.00022998,2]
[313257473,1707041446090,-175.11526788,0.00022998,2]
[313257474,1707041446099,-543.53122231,0.00022998,2]
[313257475,1707041446108,-155.74910831,0.00022998,2]
[313257476,1707041446117,-233.82550788,0.00022998,2]
[313257477,1707041446127,-12352.5292006,0.00022998,2]
[313257478,1707041446136,-1212.27156689,0.00022998,2]
[313257479,1707041446145,-1052.66597639,0.00022998,2]
[313257480,1707041446155,-698.46857632,0.00022998,2]
[313257481,1707041446165,-197.29019107,0.00022998,2]
[313257482,1707041446176,-358.43337229,0.00022998,2]
[313257483,1707041446186,-283.3250881,0.00022998,2]
[313257484,1707041446195,-698.41762816,0.00022998,2]
[313257485,1707041446204,-3663.09875095,0.00022998,2]
[313257486,1707041446213,-155.0,0.00022998,2]
[313257487,1707041446222,-1402.48848741,0.00022998,2]
[313257488,1707041446233,-155.0,0.00022998,2]
[313257489,1707041446242,-192.20939672,0.00022998,2]
[313257490,1707041446252,-178.30190912,0.00022998,2]
[313257491,1707041446263,-401.64065219,0.00022998,2]
[313257492,1707041446272,-367.76883691,0.00022998,2]
[313257493,1707041446282,-497.6362364,0.00022998,2]
[313257494,1707041446293,-500.0,0.00022998,2]
[313257495,1707041446302,-936.15722828,0.00022998,4]
[313257496,1707041446312,-417.1124126,0.00022998,2]
[313257497,1707041446321,-6018.4858798,0.00022998,2]
[313257498,1707041446332,-152649.02563712,0.00022999,2]
[313257499,1707041446370,-4981.88963403,0.00022999,2]
[313257500,1707041446383,-319.31715993,0.00022999,2]
[313257501,1707041446526,-3977.2,0.00022999,2]
[313257502,1707041446542,-243180.11932584,0.00022999,2]
[313257503,1707041446552,-6453.41251802,0.00022999,2]
[313257504,1707041446560,-500.0,0.00022999,2]
[313257505,1707041446570,-196.32039232,0.00022999,2]
[313257506,1707041446579,-500.0,0.00022999,2]
[313257507,1707041446589,-500.0,0.00022999,2]
[313257508,1707041446598,-500.0,0.00022999,2]
[313257509,1707041446607,-500.0,0.00022999,2]
[313257510,1707041446617,-500.0,0.00022999,2]
[313257511,1707041446626,-500.0,0.00022999,2]
[313257512,1707041446635,-500.0,0.00022999,2]
[313257513,1707041446644,-500.0,0.00022999,2]
[313257514,1707041446652,-239.21741362,0.00022999,2]
[313257515,1707041446662,-500.0,0.00022999,2]
[313257516,1707041446673,-500.0,0.00022999,2]
[313257517,1707041446684,-187662.26859386,0.00023,3]
[313257518,1707041446693,-345447.96573825,0.00023,2]
[313257519,1707041446703,-382362.90609385,0.00023,2]
[313257520,1707041446715,-2930.07541432,0.00023,2]
[313257521,1707041446728,-3724.9470641,0.00023,2]
[313257522,1707041446743,-14335.14185208,0.00023,2]
[313257523,1707041446758,-23270.0000002,0.00023,2]
[313257524,1707041446770,-436.73841766,0.00023,2]
[313257525,1707041446781,-476.91,0.00023,2]
[313257526,1707041446793,-58953.27958548,0.00023,2]
[313257527,1707041451961,150.0,0.00022,2]
[313257528,1707041485897,52971.432,0.00022442,2]
[313257529,1707041505429,4278.90474441,0.00021989,2]
[313257530,1707041511223,367.03,0.00020523,2]
[313257531,1707041519353,2001.5,0.000224,2]
[313257532,1707041530865,150.0,0.00022,2]
[313257533,1707041538430,562.1073315,0.00020377,2]
[313257534,1707041538466,763.01283785,0.00021751,2]
[313257535,1707041541082,631.89537959,0.0002198,2]
[313257536,1707041542138,3198.37181468,0.0002198,2]
[313257537,1707041545008,156.14288518,0.00022,2]
[313257538,1707041556303,2705.0,0.00021951,2]
[313257539,1707041579655,500.0,0.00021922,2]
[313257540,1707041593667,394.87,0.00021911,2]
[313257541,1707041627887,250.0,0.00021918,2]
[313257542,1707041637175,200.0,0.00021883,2]
[313257543,1707041664274,161.08,0.00021858,2]
[313257544,1707041666283,200.0,0.00021858,2]
[313257545,1707041683971,-151.0,0.00022543,2]
[313257546,1707041683992,-488.92621759,0.00022544,2]
[313257547,1707041684013,-3341.12258489,0.00022544,2]
[313257548,1707041684034,-720.6,0.00022547,2]
[313257549,1707041684056,-150.0,0.00022548,2]
[313257550,1707041684078,-196.89,0.00022568,2]
[313257551,1707041684100,-196.89,0.0002263,2]
[313257552,1707041684120,-408.41431133,0.00022664,2]
[313257553,1707041684140,-354932.0932,0.00022665,2]
[313257554,1707041684160,-7440.8642,0.00022665,2]
[313257555,1707041684182,-196.89,0.00022692,2]
[313257556,1707041684201,-1375.05019993,0.00022693,2]
[313257557,1707041684221,-1224.74365908,0.00022693,2]
[313257558,1707041684244,-487.49,0.00022695,2]
[313257559,1707041684266,-196.89,0.00022754,2]
[313257560,1707041684287,-2613.0,0.0002277,2]
[313257561,1707041684473,-367.03,0.00022787,2]
[313257562,1707041684495,-300.0,0.00022799,2]
[313257563,1707041684515,-150.0,0.00022799,2]
[313257564,1707041684536,-4848.31524309,0.000228,2]
[313257565,1707041684557,-196.89,0.00022816,2]
[313257566,1707041684576,-200.0,0.00022816,2]
[313257567,1707041684596,-215.43834682,0.00022876,2]
[313257568,1707041684616,-800.0,0.00022877,2]
[313257569,1707041684638,-196.89,0.00022877,2]
[313257570,1707041684659,-310.84360459,0.00022896,2]
[313257571,1707041684679,-630.29094218,0.00022896,2]
[313257572,1707041684699,-344.00913488,0.00022896,2]
[313257573,1707041684718,-249.37912992,0.00022896,2]
[313257574,1707041684741,-947.82918644,0.00022896,2]
[313257575,1707041684763,-162.26106829,0.00022897,2]
[313257576,1707041684785,-3578.27905266,0.00022898,2]
[313257577,1707041684806,-157.31227841,0.00022898,2]
[313257578,1707041684835,-197.40756613,0.00022898,2]
[313257579,1707041684859,-943.53094508,0.00022898,2]
[313257580,1707041684882,-157.58440983,0.00022898,2]
[313257581,1707041684904,-13022.60323265,0.00022898,2]
[313257582,1707041684926,-270.6074957,0.00022898,2]
[313257583,1707041684950,-155.73105162,0.00022898,2]
[313257584,1707041684971,-867.41087233,0.00022898,2]
[313257585,1707041684993,-155.22227462,0.00022898,2]
[313257586,1707041685014,-157.52280102,0.00022898,2]
[313257587,1707041685034,-598.64663937,0.00022898,2]
[313257588,1707041685055,-648.78075512,0.00022898,2]
[313257589,1707041685074,-155.0,0.00022898,2]
[313257590,1707041685094,-155.55356695,0.00022898,2]
[313257591,1707041685113,-1856.49462103,0.00022898,2]
[313257592,1707041685133,-285.21668893,0.00022898,2]
[313257593,1707041685154,-219.07628679,0.00022898,2]
[313257594,1707041685174,-155.0,0.00022898,2]
[313257595,1707041685194,-5881.01228956,0.00022898,2]
[313257596,1707041685215,-1073.11886561,0.00022898,2]
[313257597,1707041685235,-766.58965683,0.00022898,2]
[313257598,1707041685255,-314.9861483,0.00022898,2]
[313257599,1707041685275,-2144.10452078,0.00022898,2]
[313257600,1707041685294,-321.28838879,0.00022898,2]
[313257601,1707041685313,-162.13905461,0.00022898,2]
[313257602,1707041685333,-18654.44114775,0.00022898,2]
[313257603,1707041685353,-176.46382615,0.00022898,2]
[313257604,1707041685383,-199.45808764,0.00022898,2]
[313257605,1707041685403,-155.89799562,0.00022898,2]
[313257606,1707041685423,-5038.93139283,0.00022898,2]
[313257607,1707041685443,-340.45017893,0.00022898,2]
[313257608,1707041685464,-273.56273343,0.00022898,2]
[313257609,1707041685483,-475.5963884,0.00022898,2]
[313257610,1707041685503,-500.0,0.00022898,2]
[313257611,1707041685522,-163.23210883,0.00022898,2]
[313257612,1707041685541,-247.34763938,0.00022898,2]
[313257613,1707041685560,-2327.6667133,0.00022898,2]
[313257614,1707041685580,-206.20690972,0.00022898,2]
[313257615,1707041685600,-1139.78306733,0.00022898,2]
[313257616,1707041685623,-4646.38858611,0.00022898,2]
[313257617,1707041685644,-162.20319528,0.00022898,2]
[313257618,1707041685669,-155.88650894,0.00022898,2]
[313257619,1707041685691,-476.88688694,0.00022898,2]
[313257620,1707041685721,-155.19160529,0.00022898,2]
[313257621,1707041685744,-704.78719014,0.00022898,2]
[313257622,1707041685766,-155.0,0.00022898,2]
[313257623,1707041685786,-251.57324471,0.00022898,2]
[313257624,1707041685807,-156.77297195,0.00022899,2]
[313257625,1707041685829,-199.69563475,0.00022899,2]
[313257626,1707041685849,-264.01241493,0.00022899,2]
[313257627,1707041685870,-165.90347004,0.00022899,2]
[313257628,1707041685896,-355.706738,0.00022899,2]
[313257629,1707041685919,-3151.54630641,0.00022899,2]
[313257630,1707041685940,-155.43206583,0.00022899,2]
[313257631,1707041685960,-345.68529376,0.00022899,2]
[313257632,1707041685980,-292.42529483,0.00022899,2]
[313257633,1707041686000,-277.12197611,0.00022899,2]
[313257634,1707041686019,-497.3082028,0.00022899,2]
[313257635,1707041686041,-3759.01502906,0.00022899,2]
[313257636,1707041686064,-204.53410873,0.00022899,2]
[313257637,1707041686087,-544.11741687,0.00022899,2]
[313257638,1707041686112,-372.20096777,0.00022899,2]
[313257639,1707041686133,-5228.78655032,0.00022899,2]
[313257640,1707041686154,-212.64591614,0.00022899,2]
[313257641,1707041686174,-699.81053348,0.00022899,2]
[313257642,1707041686195,-349.06708826,0.00022899,2]
[313257643,1707041686215,-200.50299668,0.00022899,2]
[313257644,1707041686238,-110661.04048256,0.00022899,2]
[313257645,1707041686259,-288291.38,0.000229,2]
[313257646,1707041686279,-9680.16697541,0.000229,2]
[313257647,1707041686300,-162.26106829,0.000229,2]
[313257648,1707041686322,-153.55670088,0.000229,2]
[313257649,1707041686344,-3429.37426112,0.000229,2]
[313257650,1707041686365,-1000.0,0.000229,2]
[313257651,1707041686385,-815.72427446,0.000229,2]
[313257652,1707041686408,-196.89,0.00022939,2]
[313257653,1707041686430,-522.74011798,0.00022998,2]
[313257654,1707041686453,-2319.02287815,0.00022998,2]
[313257655,1707041686475,-169.55306514,0.00022998,2]
[313257656,1707041686501,-215.68669268,0.00022998,2]
[313257657,1707041686526,-10578.78248766,0.00022998,2]
[313257658,1707041686548,-255.80384809,0.00022998,2]
[313257659,1707041686571,-510.13598131,0.00022999,2]
[313257660,1707041686595,-16816.49524538,0.00022999,2]
[313257661,1707041686615,-479.05340948,0.00022999,2]
[313257662,1707041686638,-1010.15931397,0.00022999,2]
[313257663,1707041686661,-500.0,0.00022999,2]
[313257664,1707041686685,-500.0,0.00022999,2]
[313257665,1707041686706,-500.0,0.00022999,2]
[313257666,1707041686728,-354.75322408,0.00022999,2]
[313257667,1707041686748,-500.0,0.00022999,2]
[313257668,1707041686770,-500.0,0.00022999,2]
[313257669,1707041686792,-500.0,0.00022999,2]
[313257670,1707041686814,-500.0,0.00022999,2]
[313257671,1707041686840,-500.0,0.00022999,2]
[313257672,1707041686862,-500.0,0.00022999,2]
[313257673,1707041686888,-93831.13429693,0.00022999,3]
[313257674,1707041686912,-540566.77880124,0.00023,2]
[313257675,1707041712485,155.92143527,0.0002245,2]
[313257676,1707041732189,5455.58,0.00022194,2]
[313257677,1707041753163,183.28,0.00022194,2]
[313257678,1707041768165,2394.6,0.00022199,2]
[313257679,1707041771492,160.87,0.00022199,2]
[313257680,1707041788910,500.06,0.00022199,2]
[313257681,1707041795142,176.92,0.00022,2]
[313257682,1707041800079,200.0,0.00022146,2]
[313257683,1707041817788,676.7433,0.00022465,2]
[313257684,1707041851273,632.33,0.00022072,2]
[313257685,1707041900187,500.0,0.0002209,2]
[313257686,1707041927461,23900.0,0.00021893,2]
[313257687,1707041932955,2390.41,0.00021893,2]
[313257688,1707041962702,419.01,0.00019976,2]
[313257689,1707041963214,419.01,0.0002224,2]
[313257690,1707041967816,1249.30216498,0.00022465,2]
[313257691,1707042002716,2000.0,0.00021893,2]
[313257692,1707042006282,167.82,0.00022058,2]
[313257693,1707042006486,167.82,0.00022118,2]
[313257694,1707042006730,167.82,0.00022179,2]
[313257695,1707042007023,167.82,0.00022239,2]
[313257696,1707042007094,167.82,0.000223,2]
[313257697,1707042007290,167.82,0.0002236,2]
[313257698,1707042007480,167.82,0.00022421,2]
[313257699,1707042007848,167.82,0.00022481,2]
[313257700,1707042023112,2398.2,0.00021863,2]
[313257701,1707042044117,163.93,0.00021863,2]
[313257702,1707042058044,174.86,0.00021863,2]
[313257703,1707042063445,261.35,0.00021863,2]
[313257704,1707042079451,177.22459551,0.00022442,2]
[313257705,1707042100370,200.0,0.00021866,2]
[313257706,1707042108809,159.81,0.00021871,2]
[313257707,1707042122771,2738.32,0.00021871,2]
[313257708,1707042133284,419.88,0.00021872,2]
[313257709,1707042146124,1000.0,0.00021872,2]
[313257710,1707042188287,1093.13939434,0.00022464,2]
[313257711,1707042208128,40000.0,0.00022464,2]
[313257712,1707042209503,182.69,0.00021871,2]
[313257713,1707042217107,182.66,0.00021871,2]
[313257714,1707042239826,250.0,0.00021918,2]
[313257715,1707042240034,150.0,0.00021867,2]
[313257716,1707042243658,177.23,0.00022415,2]
[313257717,1707042246035,1926.345,0.00022464,2]
[313257718,1707042246812,250.0,0.00021867,2]
[313257719,1707042262125,1852.42,0.00021867,2]
[313257720,1707042291970,171.53,0.00017493,2]
[313257721,1707042293422,171.0687833,0.00022462,2]
[313257722,1707042298388,550.0,0.00022,3]
[313257723,1707042322953,500.0,0.00021856,2]
[313257724,1707042362106,200.0,0.00021856,2]
[313257725,1707042396806,2618.26,0.00021856,2]
[313257726,1707042402912,458.36,0.00019938,2]
[313257727,1707042403117,458.36,0.00022202,2]
[313257728,1707042406543,176.92,0.00022,2]